[Event "Titled Tuesday Blitz February 22 Early 2022"]
[White "Jacobson, Aaron"]
[Black "Golsta, Madara"]
[WhiteFideId "2089912"]
[BlackFideId "11607386"]
[WhiteElo "2265"]
[BlackElo "1997"]
[Result "1-0"]
[Round "03"]
[TimeControl "180+1"]
[Date "2022.02.22"]
[WhiteClock "0:00:09"]
[BlackClock "0:00:01"]

1. e4 {[%clk 0:03:00]}  c5 {[%clk 0:02:58]} 2. Nf3 {[%clk 0:03:00]}  d6 {[%clk 0:02:58]} 3. d4 {[%clk 0:03:00]}  cxd4 {[%clk 0:02:58]} 4. e5 {[%clk 0:03:01]}  dxe5 {[%clk 0:02:55]} 5. c3 {[%clk 0:03:02]}  Nc6 {[%clk 0:02:51]} 6. Bb5 {[%clk 0:03:02]}  Bg4 {[%clk 0:02:47]} 7. Nbd2 {[%clk 0:02:57]}  Nf6 {[%clk 0:02:43]} 8. h3 {[%clk 0:02:52]}  Bxf3 {[%clk 0:02:32]} 9. Nxf3 {[%clk 0:02:52]}  Qd5 {[%clk 0:02:17]} 10. Bxc6+ {[%clk 0:02:37]}  bxc6 {[%clk 0:02:16]} 11. cxd4 {[%clk 0:02:37]}  exd4 {[%clk 0:02:10]} 12. Qxd4 {[%clk 0:02:35]}  g6 {[%clk 0:02:01]} 13. O-O {[%clk 0:02:11]}  Bg7 {[%clk 0:01:59]} 14. Re1 {[%clk 0:01:51]}  O-O {[%clk 0:01:33]} 15. Qa4 {[%clk 0:01:16]}  e6 {[%clk 0:01:07]} 16. Be3 {[%clk 0:00:57]}  Qb5 {[%clk 0:01:06]} 17. Qa3 {[%clk 0:00:49]}  Nd5 {[%clk 0:01:05]} 18. Bd4 {[%clk 0:00:49]}  Nf4 {[%clk 0:00:45]} 19. Bxg7 {[%clk 0:00:28]}  Kxg7 {[%clk 0:00:46]} 20. Re4 {[%clk 0:00:27]}  Nd5 {[%clk 0:00:28]} 21. Rc1 {[%clk 0:00:27]}  c5 {[%clk 0:00:26]} 22. Rxc5 {[%clk 0:00:23]}  Qb6 {[%clk 0:00:22]} 23. Rec4 {[%clk 0:00:18]}  Rab8 {[%clk 0:00:19]} 24. b3 {[%clk 0:00:18]}  Rfd8 {[%clk 0:00:18]} 25. Qb2+ {[%clk 0:00:16]}  Kg8 {[%clk 0:00:17]} 26. Rc6 {[%clk 0:00:15]}  Qb7 {[%clk 0:00:16]} 27. Ng5 {[%clk 0:00:15]}  Rbc8 {[%clk 0:00:14]} 28. Qc1 {[%clk 0:00:06]}  Rxc6 {[%clk 0:00:13]} 29. Rxc6 {[%clk 0:00:07]}  Qb5 {[%clk 0:00:11]} 30. Ne4 {[%clk 0:00:06]}  Qe2 {[%clk 0:00:10]} 31. Nd2 {[%clk 0:00:02]}  Nf4 {[%clk 0:00:08]} 32. Rc8 {[%clk 0:00:03]}  Rxc8 {[%clk 0:00:06]} 33. Qxc8+ {[%clk 0:00:03]}  Kg7 {[%clk 0:00:07]} 34. Qc3+ {[%clk 0:00:03]}  Kg8 {[%clk 0:00:06]} 35. Qc8+ {[%clk 0:00:03]}  Kg7 {[%clk 0:00:06]} 36. Qc3+ {[%clk 0:00:04]}  Kg8 {[%clk 0:00:07]} 37. Qe3 {[%clk 0:00:04]}  Qd1+ {[%clk 0:00:04]} 38. Kh2 {[%clk 0:00:05]}  g5 {[%clk 0:00:03]} 39. Ne4 {[%clk 0:00:05]}  Qf1 {[%clk 0:00:01]} 40. Qg3 {[%clk 0:00:06]}  Ne2 {[%clk 0:00:01]} 41. Qxg5+ {[%clk 0:00:06]}  Kf8 {[%clk 0:00:01]} 42. Qd8+ {[%clk 0:00:06]}  Kg7 {[%clk 0:00:02]} 43. Qf6+ {[%clk 0:00:06]}  Kf8 {[%clk 0:00:02]} 44. Qh8+ {[%clk 0:00:02]}  Ke7 {[%clk 0:00:02]} 45. Qf6+ {[%clk 0:00:02]}  Kf8 {[%clk 0:00:02]} 46. Qd8+ {[%clk 0:00:02]}  Kg7 {[%clk 0:00:02]} 47. Qg5+ {[%clk 0:00:03]}  Kf8 {[%clk 0:00:03]} 48. h4 {[%clk 0:00:02]}  Qg1+ {[%clk 0:00:02]} 49. Kh3 {[%clk 0:00:02]}  Qh1+ {[%clk 0:00:03]} 50. Kg4 {[%clk 0:00:03]}  Qxg2+ {[%clk 0:00:03]} 51. Kh5 {[%clk 0:00:02]}  Qxe4 {[%clk 0:00:03]} 52. Qd8+ {[%clk 0:00:02]}  Kg7 {[%clk 0:00:03]} 53. Qg5+ {[%clk 0:00:01]}  Qg6+ {[%clk 0:00:03]} 54. Kg4 {[%clk 0:00:01]}  Qxg5+ {[%clk 0:00:03]} 55. hxg5 {[%clk 0:00:02]}  Nc3 {[%clk 0:00:03]} 56. a3 {[%clk 0:00:02]}  Nb1 {[%clk 0:00:03]} 57. a4 {[%clk 0:00:03]}  Nd2 {[%clk 0:00:03]} 58. b4 {[%clk 0:00:04]}  Nc4 {[%clk 0:00:02]} 59. Kf4 {[%clk 0:00:04]}  h6 {[%clk 0:00:02]} 60. gxh6+ {[%clk 0:00:04]}  Kxh6 {[%clk 0:00:03]} 61. Ke4 {[%clk 0:00:05]}  Kg6 {[%clk 0:00:03]} 62. Kd4 {[%clk 0:00:06]}  Nb6 {[%clk 0:00:03]} 63. a5 {[%clk 0:00:06]}  Nd5 {[%clk 0:00:03]} 64. b5 {[%clk 0:00:07]}  Kf5 {[%clk 0:00:03]} 65. Kc5 {[%clk 0:00:07]}  Kf4 {[%clk 0:00:03]} 66. Kc6 {[%clk 0:00:08]}  Nb4+ {[%clk 0:00:03]} 67. Kb7 {[%clk 0:00:08]}  Nd5 {[%clk 0:00:02]} 68. Kxa7 {[%clk 0:00:08]}  Kf3 {[%clk 0:00:02]} 69. b6 {[%clk 0:00:09]}  Kxf2 {[%clk 0:00:02]} 70. b7 {[%clk 0:00:10]}  Nb4 {[%clk 0:00:01]} 71. Kb6 {[%clk 0:00:09]}  Nd5+ {[%clk 0:00:01]} 72. Kc5 {[%clk 0:00:09]}  Ne7 {[%clk 0:00:01]} 73. b8=Q {[%clk 0:00:09]} 1-0


[Site "https://www.chess.com"]

[Event "Titled Tuesday Blitz February 22 Early 2022"]
[White "Jakubowska, Anna"]
[Black "Baker, Chris W"]
[WhiteFideId "1121952"]
[BlackFideId "401676"]
[WhiteElo "1924"]
[BlackElo "2201"]
[Result "1-0"]
[Round "03"]
[TimeControl "180+1"]
[Date "2022.02.22"]
[WhiteClock "0:00:32"]
[BlackClock "0:00:04"]

1. e4 {[%clk 0:03:00]}  e5 {[%clk 0:02:59]} 2. Nf3 {[%clk 0:02:59]}  Nc6 {[%clk 0:02:59]} 3. Bb5 {[%clk 0:03:00]}  a6 {[%clk 0:02:59]} 4. Ba4 {[%clk 0:03:00]}  Nf6 {[%clk 0:02:59]} 5. O-O {[%clk 0:03:01]}  Be7 {[%clk 0:02:59]} 6. d3 {[%clk 0:03:01]}  b5 {[%clk 0:02:59]} 7. Bb3 {[%clk 0:03:01]}  O-O {[%clk 0:02:59]} 8. a4 {[%clk 0:03:01]}  Bb7 {[%clk 0:02:58]} 9. Na3 {[%clk 0:02:53]}  d5 {[%clk 0:02:50]} 10. exd5 {[%clk 0:02:33]}  Nxd5 {[%clk 0:02:49]} 11. Re1 {[%clk 0:02:27]}  Bf6 {[%clk 0:02:11]} 12. Bd2 {[%clk 0:02:18]}  b4 {[%clk 0:01:43]} 13. Nc4 {[%clk 0:02:17]}  Re8 {[%clk 0:01:42]} 14. a5 {[%clk 0:02:12]}  Nd4 {[%clk 0:01:26]} 15. Ba4 {[%clk 0:01:59]}  Nxf3+ {[%clk 0:01:15]} 16. Qxf3 {[%clk 0:01:57]}  Re6 {[%clk 0:01:03]} 17. Bb3 {[%clk 0:01:47]}  Qd7 {[%clk 0:00:55]} 18. Qg3 {[%clk 0:01:46]}  Rd8 {[%clk 0:00:48]} 19. Ne3 {[%clk 0:01:39]}  Rd6 {[%clk 0:00:44]} 20. Nxd5 {[%clk 0:01:32]}  Bxd5 {[%clk 0:00:42]} 21. Bxb4 {[%clk 0:01:30]}  Rc6 {[%clk 0:00:32]} 22. Ba4 {[%clk 0:01:29]}  Rb8 {[%clk 0:00:29]} 23. Bxc6 {[%clk 0:01:27]}  Qxc6 {[%clk 0:00:29]} 24. Bc3 {[%clk 0:01:28]}  e4 {[%clk 0:00:20]} 25. dxe4 {[%clk 0:01:24]}  Bc4 {[%clk 0:00:17]} 26. e5 {[%clk 0:01:20]}  Be7 {[%clk 0:00:15]} 27. e6 {[%clk 0:01:20]}  f6 {[%clk 0:00:15]} 28. Rad1 {[%clk 0:01:13]}  Bd5 {[%clk 0:00:14]} 29. Qg4 {[%clk 0:00:57]}  h5 {[%clk 0:00:11]} 30. Qg6 {[%clk 0:00:50]}  Bxe6 {[%clk 0:00:10]} 31. Qxh5 {[%clk 0:00:49]}  Bf7 {[%clk 0:00:08]} 32. Qg4 {[%clk 0:00:39]}  Re8 {[%clk 0:00:05]} 33. Qd7 {[%clk 0:00:32]}  Qxd7 {[%clk 0:00:04]} 34. Rxd7 {[%clk 0:00:32]} 1-0


[Site "https://www.chess.com"]

[Event "Titled Tuesday Blitz February 22 Early 2022"]
[White "Jaracz, Pawel"]
[Black "Lazavik, Denis"]
[WhiteFideId "1102222"]
[BlackFideId "13515110"]
[WhiteElo "2429"]
[BlackElo "2436"]
[Result "0-1"]
[Round "03"]
[TimeControl "180+1"]
[Date "2022.02.22"]
[WhiteClock "0:00:01"]
[BlackClock "0:00:15"]

1. e4 {[%clk 0:03:00]}  e5 {[%clk 0:02:59]} 2. Nf3 {[%clk 0:03:00]}  Nc6 {[%clk 0:03:00]} 3. Bb5 {[%clk 0:02:58]}  Nf6 {[%clk 0:02:58]} 4. d3 {[%clk 0:02:58]}  Bc5 {[%clk 0:02:58]} 5. c3 {[%clk 0:02:57]}  O-O {[%clk 0:02:57]} 6. Nbd2 {[%clk 0:02:56]}  d6 {[%clk 0:02:53]} 7. O-O {[%clk 0:02:55]}  h6 {[%clk 0:02:50]} 8. h3 {[%clk 0:02:50]}  Bb6 {[%clk 0:02:48]} 9. Re1 {[%clk 0:02:48]}  Ne7 {[%clk 0:02:49]} 10. Nf1 {[%clk 0:02:46]}  Ng6 {[%clk 0:02:49]} 11. Ng3 {[%clk 0:02:47]}  c6 {[%clk 0:02:48]} 12. Ba4 {[%clk 0:02:46]}  Re8 {[%clk 0:02:41]} 13. d4 {[%clk 0:02:43]}  Bd7 {[%clk 0:02:22]} 14. Bc2 {[%clk 0:02:41]}  Qe7 {[%clk 0:02:15]} 15. Be3 {[%clk 0:02:39]}  Rad8 {[%clk 0:02:15]} 16. Qd2 {[%clk 0:02:37]}  Qf8 {[%clk 0:02:15]} 17. Rad1 {[%clk 0:02:31]}  Bc8 {[%clk 0:02:08]} 18. Qc1 {[%clk 0:02:29]}  Bc7 {[%clk 0:01:54]} 19. c4 {[%clk 0:02:22]}  exd4 {[%clk 0:01:51]} 20. Bxd4 {[%clk 0:02:19]}  Ne5 {[%clk 0:01:49]} 21. Nh4 {[%clk 0:02:12]}  Bb6 {[%clk 0:01:37]} 22. Nhf5 {[%clk 0:02:04]}  Bxd4 {[%clk 0:01:34]} 23. Rxd4 {[%clk 0:02:04]}  d5 {[%clk 0:01:28]} 24. exd5 {[%clk 0:01:59]}  cxd5 {[%clk 0:01:28]} 25. Ba4 {[%clk 0:01:35]}  Nc6 {[%clk 0:01:22]} 26. Rxe8 {[%clk 0:01:27]}  Rxe8 {[%clk 0:01:13]} 27. cxd5 {[%clk 0:01:24]}  Nxd4 {[%clk 0:01:09]} 28. Nxd4 {[%clk 0:00:58]}  Rd8 {[%clk 0:01:09]} 29. Bb3 {[%clk 0:00:54]}  Nxd5 {[%clk 0:01:06]} 30. Nh5 {[%clk 0:00:47]}  Qe8 {[%clk 0:00:54]} 31. Nf3 {[%clk 0:00:34]}  Be6 {[%clk 0:00:46]} 32. Nd4 {[%clk 0:00:30]}  Qe7 {[%clk 0:00:38]} 33. Ng3 {[%clk 0:00:19]}  Qf6 {[%clk 0:00:33]} 34. Nf3 {[%clk 0:00:13]}  Nf4 {[%clk 0:00:32]} 35. Bxe6 {[%clk 0:00:13]}  Nxe6 {[%clk 0:00:32]} 36. Kh2 {[%clk 0:00:09]}  Qf4 {[%clk 0:00:31]} 37. Qc2 {[%clk 0:00:08]}  Ng5 {[%clk 0:00:27]} 38. Ng1 {[%clk 0:00:06]}  Rd2 {[%clk 0:00:23]} 39. Qc8+ {[%clk 0:00:05]}  Kh7 {[%clk 0:00:23]} 40. Qxb7 {[%clk 0:00:02]}  Rxf2 {[%clk 0:00:21]} 41. Qxa7 {[%clk 0:00:01]}  Nf3+ {[%clk 0:00:15]} 42. Nxf3 {[%clk 0:00:01]}  Qxf3 {[%clk 0:00:15]} 0-1


[Site "https://www.chess.com"]

[Event "Titled Tuesday Blitz February 22 Early 2022"]
[White "Jiang, Brian"]
[Black "Vlassov, Nikolai"]
[WhiteFideId "2627922"]
[BlackFideId "4103360"]
[WhiteElo "2414"]
[BlackElo "2407"]
[Result "0-1"]
[Round "03"]
[TimeControl "180+1"]
[Date "2022.02.22"]
[WhiteClock "0:00:05"]
[BlackClock "0:00:09"]

1. d4 {[%clk 0:03:00]}  Nf6 {[%clk 0:02:58]} 2. c4 {[%clk 0:03:01]}  Nc6 {[%clk 0:02:58]} 3. Nf3 {[%clk 0:03:00]}  e6 {[%clk 0:02:58]} 4. Nc3 {[%clk 0:03:00]}  Bb4 {[%clk 0:02:57]} 5. Qc2 {[%clk 0:03:00]}  d6 {[%clk 0:02:57]} 6. Bd2 {[%clk 0:02:59]}  O-O {[%clk 0:02:54]} 7. a3 {[%clk 0:02:59]}  Bxc3 {[%clk 0:02:54]} 8. Bxc3 {[%clk 0:03:00]}  a5 {[%clk 0:02:53]} 9. e3 {[%clk 0:02:54]}  Qe7 {[%clk 0:02:52]} 10. Be2 {[%clk 0:02:54]}  e5 {[%clk 0:02:49]} 11. d5 {[%clk 0:02:55]}  Nb8 {[%clk 0:02:48]} 12. O-O {[%clk 0:02:55]}  c6 {[%clk 0:02:47]} 13. dxc6 {[%clk 0:02:52]}  Nxc6 {[%clk 0:02:46]} 14. Nd2 {[%clk 0:02:50]}  Be6 {[%clk 0:02:41]} 15. Rad1 {[%clk 0:02:46]}  d5 {[%clk 0:02:38]} 16. cxd5 {[%clk 0:02:41]}  Nxd5 {[%clk 0:02:38]} 17. Nc4 {[%clk 0:02:31]}  Nxc3 {[%clk 0:02:36]} 18. Qxc3 {[%clk 0:02:32]}  f6 {[%clk 0:02:32]} 19. Nb6 {[%clk 0:02:26]}  Rad8 {[%clk 0:02:31]} 20. Bc4 {[%clk 0:02:22]}  Kf7 {[%clk 0:02:18]} 21. Qb3 {[%clk 0:02:16]}  Rxd1 {[%clk 0:02:12]} 22. Rxd1 {[%clk 0:02:17]}  Rd8 {[%clk 0:02:10]} 23. Rxd8 {[%clk 0:02:11]}  Nxd8 {[%clk 0:02:09]} 24. h3 {[%clk 0:02:05]}  Qc5 {[%clk 0:01:50]} 25. Bxe6+ {[%clk 0:02:05]}  Nxe6 {[%clk 0:01:50]} 26. Nc4 {[%clk 0:02:05]}  Qd5 {[%clk 0:01:21]} 27. Qxb7+ {[%clk 0:02:04]}  Qxb7 {[%clk 0:01:18]} 28. Nd6+ {[%clk 0:02:05]}  Ke7 {[%clk 0:01:18]} 29. Nxb7 {[%clk 0:02:06]}  a4 {[%clk 0:01:14]} 30. Kf1 {[%clk 0:02:01]}  Kd7 {[%clk 0:01:07]} 31. Na5 {[%clk 0:02:00]}  Kd6 {[%clk 0:01:07]} 32. Nc4+ {[%clk 0:02:00]}  Kc5 {[%clk 0:01:07]} 33. Nd2 {[%clk 0:01:57]}  f5 {[%clk 0:00:49]} 34. Ke2 {[%clk 0:01:52]}  e4 {[%clk 0:00:47]} 35. f3 {[%clk 0:01:42]}  exf3+ {[%clk 0:00:47]} 36. gxf3 {[%clk 0:01:43]}  g5 {[%clk 0:00:37]} 37. Kd3 {[%clk 0:01:39]}  h5 {[%clk 0:00:34]} 38. Nb1 {[%clk 0:01:29]}  g4 {[%clk 0:00:24]} 39. fxg4 {[%clk 0:01:28]}  fxg4 {[%clk 0:00:25]} 40. hxg4 {[%clk 0:01:27]}  h4 {[%clk 0:00:25]} 41. Nd2 {[%clk 0:01:22]}  h3 {[%clk 0:00:25]} 42. Nf3 {[%clk 0:01:15]}  Kd6 {[%clk 0:00:16]} 43. g5 {[%clk 0:01:13]}  Ke7 {[%clk 0:00:14]} 44. Ke2 {[%clk 0:01:04]}  Nxg5 {[%clk 0:00:13]} 45. Nh2 {[%clk 0:01:00]}  Kd6 {[%clk 0:00:14]} 46. Kd3 {[%clk 0:00:57]}  Ke5 {[%clk 0:00:12]} 47. Kc4 {[%clk 0:00:22]}  Ke4 {[%clk 0:00:12]} 48. Kb4 {[%clk 0:00:22]}  Kxe3 {[%clk 0:00:13]} 49. Kxa4 {[%clk 0:00:22]}  Nf3 {[%clk 0:00:12]} 50. Ng4+ {[%clk 0:00:18]}  Kf4 {[%clk 0:00:12]} 51. Nf2 {[%clk 0:00:16]}  h2 {[%clk 0:00:12]} 52. b4 {[%clk 0:00:14]}  Kg3 {[%clk 0:00:12]} 53. Nh1+ {[%clk 0:00:13]}  Kg2 {[%clk 0:00:13]} 54. b5 {[%clk 0:00:14]}  Kg1 {[%clk 0:00:12]} 55. Ng3 {[%clk 0:00:11]}  Kg2 {[%clk 0:00:11]} 56. b6 {[%clk 0:00:07]}  Ne5 {[%clk 0:00:09]} 57. b7 {[%clk 0:00:05]}  Nd7 {[%clk 0:00:09]} 0-1


[Site "https://www.chess.com"]

[Event "Titled Tuesday Blitz February 22 Early 2022"]
[White "Kadam, Om Manish"]
[Black "Tomiello, Mateus Costamilan"]
[WhiteFideId "45076294"]
[BlackFideId "22701958"]
[WhiteElo "1729"]
[BlackElo "1975"]
[Result "1-0"]
[Round "03"]
[TimeControl "180+1"]
[Date "2022.02.22"]
[WhiteClock "0:02:33"]
[BlackClock "0:00:28"]

1. e4 {[%clk 0:03:00]}  e5 {[%clk 0:03:00]} 2. Nf3 {[%clk 0:03:00]}  Nc6 {[%clk 0:03:00]} 3. Bc4 {[%clk 0:03:00]}  Nf6 {[%clk 0:03:01]} 4. d3 {[%clk 0:03:00]}  Bc5 {[%clk 0:03:01]} 5. c3 {[%clk 0:03:01]}  d6 {[%clk 0:03:01]} 6. b4 {[%clk 0:03:01]}  Bb6 {[%clk 0:03:01]} 7. a4 {[%clk 0:03:02]}  a6 {[%clk 0:03:01]} 8. Nbd2 {[%clk 0:03:02]}  O-O {[%clk 0:03:01]} 9. O-O {[%clk 0:03:02]}  d5 {[%clk 0:02:58]} 10. exd5 {[%clk 0:03:02]}  Nxd5 {[%clk 0:02:59]} 11. Ne4 {[%clk 0:03:03]}  f6 {[%clk 0:02:52]} 12. Qb3 {[%clk 0:02:55]}  Be6 {[%clk 0:02:52]} 13. Nfg5 {[%clk 0:02:53]}  fxg5 {[%clk 0:02:45]} 14. Nxg5 {[%clk 0:02:53]}  Rxf2 {[%clk 0:02:36]} 15. Rxf2 {[%clk 0:02:49]}  Qf6 {[%clk 0:02:34]} 16. d4 {[%clk 0:02:44]}  Nxd4 {[%clk 0:02:01]} 17. cxd4 {[%clk 0:02:43]}  Bxd4 {[%clk 0:02:00]} 18. Be3 {[%clk 0:02:43]}  Bxe3 {[%clk 0:01:35]} 19. Qxe3 {[%clk 0:02:40]}  Nxe3 {[%clk 0:01:25]} 20. Bxe6+ {[%clk 0:02:39]}  Kf8 {[%clk 0:01:22]} 21. Nxh7+ {[%clk 0:02:37]}  Ke7 {[%clk 0:01:13]} 22. Nxf6 {[%clk 0:02:38]}  gxf6 {[%clk 0:01:11]} 23. Re1 {[%clk 0:02:36]}  Kxe6 {[%clk 0:01:08]} 24. Rxe3 {[%clk 0:02:35]}  Rd8 {[%clk 0:01:09]} 25. g4 {[%clk 0:02:34]}  Rd4 {[%clk 0:01:09]} 26. h3 {[%clk 0:02:34]}  Rxb4 {[%clk 0:01:09]} 27. Ref3 {[%clk 0:02:34]}  e4 {[%clk 0:01:01]} 28. Rxf6+ {[%clk 0:02:35]}  Ke5 {[%clk 0:01:01]} 29. g5 {[%clk 0:02:36]}  e3 {[%clk 0:00:58]} 30. Rg2 {[%clk 0:02:36]}  Rb1+ {[%clk 0:00:50]} 31. Kh2 {[%clk 0:02:35]}  c5 {[%clk 0:00:44]} 32. Rf8 {[%clk 0:02:35]}  Rb6 {[%clk 0:00:33]} 33. g6 {[%clk 0:02:34]}  Rxg6 {[%clk 0:00:31]} 34. Rxg6 {[%clk 0:02:33]}  Kd4 {[%clk 0:00:28]} 35. Rd6+ {[%clk 0:02:33]}  Kc3 {[%clk 0:00:28]} 36. Re8 {[%clk 0:02:33]} 1-0


[Site "https://www.chess.com"]

[Event "Titled Tuesday Blitz February 22 Early 2022"]
[White "Kalajzic, Ivan"]
[Black "Karabalis, Harilos"]
[WhiteFideId "14506378"]
[BlackFideId "4621808"]
[WhiteElo "2163"]
[BlackElo "2168"]
[Result "0-1"]
[Round "03"]
[TimeControl "180+1"]
[Date "2022.02.22"]
[WhiteClock "0:00:06"]
[BlackClock "0:01:32"]

1. b3 {[%clk 0:00:35]}  Nf6 {[%clk 0:02:56]} 2. Bb2 {[%clk 0:00:34]}  d5 {[%clk 0:02:55]} 3. Bxf6 {[%clk 0:00:34]}  exf6 {[%clk 0:02:53]} 4. e3 {[%clk 0:00:34]}  Bd6 {[%clk 0:02:51]} 5. Nf3 {[%clk 0:00:35]}  O-O {[%clk 0:02:50]} 6. d4 {[%clk 0:00:36]}  a5 {[%clk 0:02:50]} 7. Nbd2 {[%clk 0:00:37]}  a4 {[%clk 0:02:50]} 8. Bd3 {[%clk 0:00:37]}  Re8 {[%clk 0:02:48]} 9. O-O {[%clk 0:00:37]}  Nd7 {[%clk 0:02:47]} 10. c4 {[%clk 0:00:37]}  axb3 {[%clk 0:02:43]} 11. axb3 {[%clk 0:00:36]}  Rxa1 {[%clk 0:02:44]} 12. Qxa1 {[%clk 0:00:37]}  dxc4 {[%clk 0:02:44]} 13. bxc4 {[%clk 0:00:37]}  c6 {[%clk 0:02:45]} 14. c5 {[%clk 0:00:37]}  Bb8 {[%clk 0:02:43]} 15. Qb1 {[%clk 0:00:38]}  Nf8 {[%clk 0:02:42]} 16. Nc4 {[%clk 0:00:36]}  Qc7 {[%clk 0:02:42]} 17. g3 {[%clk 0:00:36]}  Bg4 {[%clk 0:02:39]} 18. Nfd2 {[%clk 0:00:35]}  g6 {[%clk 0:02:25]} 19. Nd6 {[%clk 0:00:34]}  Re7 {[%clk 0:02:23]} 20. Bc4 {[%clk 0:00:30]}  Be6 {[%clk 0:02:21]} 21. Qb3 {[%clk 0:00:29]}  Bxc4 {[%clk 0:02:20]} 22. Qxc4 {[%clk 0:00:30]}  Qd8 {[%clk 0:02:16]} 23. Rb1 {[%clk 0:00:29]}  Bxd6 {[%clk 0:02:15]} 24. cxd6 {[%clk 0:00:29]}  Qxd6 {[%clk 0:02:15]} 25. Qd3 {[%clk 0:00:26]}  b5 {[%clk 0:02:13]} 26. Ne4 {[%clk 0:00:26]}  Qe6 {[%clk 0:02:09]} 27. Nc5 {[%clk 0:00:25]}  Qd5 {[%clk 0:02:03]} 28. Rc1 {[%clk 0:00:25]}  f5 {[%clk 0:02:02]} 29. Qc3 {[%clk 0:00:24]}  Ne6 {[%clk 0:01:59]} 30. Nxe6 {[%clk 0:00:24]}  Rxe6 {[%clk 0:02:00]} 31. Qc5 {[%clk 0:00:25]}  Qd7 {[%clk 0:01:56]} 32. Rd1 {[%clk 0:00:23]}  Rd6 {[%clk 0:01:56]} 33. Ra1 {[%clk 0:00:21]}  Rd5 {[%clk 0:01:56]} 34. Ra7 {[%clk 0:00:20]}  Rxc5 {[%clk 0:01:52]} 35. Rxd7 {[%clk 0:00:19]}  Rc4 {[%clk 0:01:52]} 36. d5 {[%clk 0:00:19]}  cxd5 {[%clk 0:01:48]} 37. Rxd5 {[%clk 0:00:19]}  b4 {[%clk 0:01:49]} 38. Rd8+ {[%clk 0:00:19]}  Kg7 {[%clk 0:01:49]} 39. Rb8 {[%clk 0:00:20]}  h5 {[%clk 0:01:48]} 40. h4 {[%clk 0:00:20]}  Kf6 {[%clk 0:01:48]} 41. Kg2 {[%clk 0:00:21]}  Ke5 {[%clk 0:01:48]} 42. Kf3 {[%clk 0:00:18]}  Kd6 {[%clk 0:01:46]} 43. Ke2 {[%clk 0:00:14]}  Kc5 {[%clk 0:01:41]} 44. Rc8+ {[%clk 0:00:13]}  Kb5 {[%clk 0:01:42]} 45. Rb8+ {[%clk 0:00:12]}  Ka4 {[%clk 0:01:42]} 46. Kd3 {[%clk 0:00:13]}  Rc7 {[%clk 0:01:41]} 47. Kd4 {[%clk 0:00:11]}  Kb3 {[%clk 0:01:41]} 48. f3 {[%clk 0:00:11]}  Ka3 {[%clk 0:01:41]} 49. Ra8+ {[%clk 0:00:10]}  Kb2 {[%clk 0:01:40]} 50. Kd5 {[%clk 0:00:11]}  b3 {[%clk 0:01:40]} 51. Kd6 {[%clk 0:00:12]}  Rc3 {[%clk 0:01:38]} 52. e4 {[%clk 0:00:10]}  Rxf3 {[%clk 0:01:33]} 53. e5 {[%clk 0:00:09]}  Rxg3 {[%clk 0:01:33]} 54. Ke7 {[%clk 0:00:09]}  Re3 {[%clk 0:01:33]} 55. Ra5 {[%clk 0:00:10]}  f4 {[%clk 0:01:33]} 56. Kxf7 {[%clk 0:00:04]}  f3 {[%clk 0:01:33]} 57. e6 {[%clk 0:00:05]}  f2 {[%clk 0:01:33]} 58. e7 {[%clk 0:00:06]}  f1=Q+ {[%clk 0:01:32]} 0-1


[Site "https://www.chess.com"]

[Event "Titled Tuesday Blitz February 22 Early 2022"]
[White "Kaplan, Ebru"]
[Black "Sarkar, Justin"]
[WhiteFideId "6315194"]
[BlackFideId "2010011"]
[WhiteElo "1941"]
[BlackElo "2038"]
[Result "1-0"]
[Round "03"]
[TimeControl "180+1"]
[Date "2022.02.22"]
[WhiteClock "0:00:16"]
[BlackClock "0:00:01"]

1. e4 {[%clk 0:03:00]}  c5 {[%clk 0:02:55]} 2. Nf3 {[%clk 0:03:00]}  Nc6 {[%clk 0:02:51]} 3. Bb5 {[%clk 0:03:00]}  g6 {[%clk 0:02:23]} 4. Bxc6 {[%clk 0:02:59]}  bxc6 {[%clk 0:02:18]} 5. O-O {[%clk 0:02:58]}  Bg7 {[%clk 0:02:17]} 6. Re1 {[%clk 0:02:58]}  Nf6 {[%clk 0:02:12]} 7. e5 {[%clk 0:02:57]}  Nd5 {[%clk 0:02:12]} 8. c4 {[%clk 0:02:57]}  Nc7 {[%clk 0:02:11]} 9. d4 {[%clk 0:02:57]}  cxd4 {[%clk 0:02:10]} 10. Qxd4 {[%clk 0:02:58]}  Ne6 {[%clk 0:02:06]} 11. Qh4 {[%clk 0:02:58]}  h6 {[%clk 0:02:05]} 12. Nc3 {[%clk 0:02:53]}  g5 {[%clk 0:01:54]} 13. Qe4 {[%clk 0:02:11]}  O-O {[%clk 0:01:38]} 14. h4 {[%clk 0:02:07]}  f5 {[%clk 0:01:27]} 15. exf6 {[%clk 0:01:56]}  exf6 {[%clk 0:01:28]} 16. b3 {[%clk 0:01:16]}  f5 {[%clk 0:01:26]} 17. Qd3 {[%clk 0:01:12]}  g4 {[%clk 0:01:18]} 18. Ne5 {[%clk 0:01:06]}  Qxh4 {[%clk 0:01:07]} 19. Ng6 {[%clk 0:01:03]}  Qf6 {[%clk 0:01:00]} 20. Nxf8 {[%clk 0:00:57]}  Qxc3 {[%clk 0:00:58]} 21. Qxc3 {[%clk 0:00:52]}  Bxc3 {[%clk 0:00:59]} 22. Nxe6 {[%clk 0:00:52]}  dxe6 {[%clk 0:00:44]} 23. Bxh6 {[%clk 0:00:48]}  e5 {[%clk 0:00:07]} 24. Rac1 {[%clk 0:00:43]}  Bxe1 {[%clk 0:00:06]} 25. Rxe1 {[%clk 0:00:43]}  Be6 {[%clk 0:00:04]} 26. Rxe5 {[%clk 0:00:42]}  Kf7 {[%clk 0:00:05]} 27. Be3 {[%clk 0:00:38]}  a6 {[%clk 0:00:04]} 28. Rc5 {[%clk 0:00:35]}  Bd7 {[%clk 0:00:04]} 29. Kf1 {[%clk 0:00:30]}  Re8 {[%clk 0:00:04]} 30. Ra5 {[%clk 0:00:29]}  Bc8 {[%clk 0:00:04]} 31. Rc5 {[%clk 0:00:28]}  Bd7 {[%clk 0:00:04]} 32. g3 {[%clk 0:00:22]}  Kg6 {[%clk 0:00:04]} 33. Ra5 {[%clk 0:00:21]}  Bc8 {[%clk 0:00:04]} 34. Bf4 {[%clk 0:00:21]}  Re4 {[%clk 0:00:04]} 35. Re5 {[%clk 0:00:20]}  Rxe5 {[%clk 0:00:03]} 36. Bxe5 {[%clk 0:00:20]}  Kf7 {[%clk 0:00:04]} 37. Ke2 {[%clk 0:00:20]}  Ke6 {[%clk 0:00:04]} 38. Bf4 {[%clk 0:00:16]}  Bd7 {[%clk 0:00:05]} 39. Ke3 {[%clk 0:00:16]}  Be8 {[%clk 0:00:04]} 40. Kd4 {[%clk 0:00:16]}  Kd7 {[%clk 0:00:03]} 41. Kc5 {[%clk 0:00:16]}  Kc8 {[%clk 0:00:02]} 42. Kb6 {[%clk 0:00:16]}  a5 {[%clk 0:00:01]} 43. Kxa5 {[%clk 0:00:17]}  Kb7 {[%clk 0:00:01]} 44. Kb4 {[%clk 0:00:16]}  Bf7 {[%clk 0:00:01]} 45. Kc5 {[%clk 0:00:16]} 1-0


[Site "https://www.chess.com"]